fUSD/lending_fUSD_20241026
["ID","MTS","AMOUNT","RATE_DAILY","PERIOD"]
[340860058,1729953042862,-500.0,0.00058726,120]
[340860059,1729953042871,-500.0,0.00058726,120]
[340860060,1729953042881,-500.0,0.00058726,120]
[340860061,1729953042890,-500.0,0.00058726,120]
[340860062,1729953042899,-500.0,0.00058726,120]
[340860063,1729953042908,-500.0,0.00058726,120]
[340860064,1729953042917,-500.0,0.00058726,120]
[340860065,1729953042927,-500.0,0.00058726,120]
[340860066,1729953042936,-500.0,0.00058726,120]
[340860067,1729953042945,-500.0,0.00058726,120]
[340860068,1729953042954,-500.0,0.00058726,120]
[340860069,1729953042964,-500.0,0.00058726,120]
[340860070,1729953042974,-648.59,0.00058726,120]
[340860071,1729953042983,-1000.0,0.00058894,120]
[340860072,1729953042992,-1200.0,0.00059,30]
[340860073,1729953043002,-8917.09647116,0.0005917,120]
[340860074,1729953043011,-2000.0,0.00059178,15]
[340860075,1729953043021,-200.0,0.00059178,15]
[340860076,1729953043030,-500.0,0.00059178,120]
[340860077,1729953043039,-516.96,0.00059178,120]
[340860078,1729953043048,-500.0,0.00059178,120]
[340860079,1729953043057,-841.6,0.00059178,120]
[340860080,1729953043066,-1382.79,0.00059178,120]
[340860081,1729953043075,-794.58,0.00059178,120]
[340860082,1729953043084,-500.0,0.00059178,21]
[340860083,1729953043093,-543.0,0.00059178,120]
[340860084,1729953043102,-1101.66,0.00059178,120]
[340860085,1729953043111,-500.0,0.00059178,120]
[340860086,1729953043122,-799.22,0.00059178,120]
[340860087,1729953043131,-2462.02,0.00059178,120]
[340860088,1729953043141,-1479.17,0.00059178,120]
[340860089,1729953043150,-500.0,0.00059178,3]
[340860091,1729953043160,-500.0,0.00059178,120]
[340860092,1729953043169,-500.0,0.00059178,120]
[340860093,1729953043179,-500.0,0.00059178,120]
[340860094,1729953043188,-500.0,0.00059178,120]
[340860095,1729953043198,-500.0,0.00059178,120]
[340860096,1729953043208,-798.12,0.00059178,120]
[340860097,1729953043218,-623.98377248,0.00059178,120]
[340860098,1729953043227,-688.54,0.00059347,2]
[340860099,1729953043237,-7968.23850756,0.000595,120]
[340860100,1729953043246,-10000.0,0.000597,120]
[340860101,1729953043255,-156.03,0.000597,120]
[340860102,1729953043264,-500.0,0.000597,2]
[340860103,1729953043274,-150.0,0.000597,120]
[340860105,1729953043283,-500.0,0.00059726,120]
[340860107,1729953043292,-516.96,0.00059726,120]
[340860108,1729953043302,-500.0,0.00059726,120]
[340860109,1729953043311,-841.6,0.00059726,120]
[340860110,1729953043321,-1382.79,0.00059726,120]
[340860111,1729953043330,-794.58,0.00059726,120]
[340860112,1729953043339,-500.0,0.00059726,21]
[340860113,1729953043349,-543.0,0.00059726,120]
[340860114,1729953043358,-1101.66,0.00059726,120]
[340860115,1729953043448,-500.0,0.00059726,120]
[340860116,1729953043468,-799.22,0.00059726,120]
[340860117,1729953043478,-2462.02,0.00059726,120]
[340860118,1729953043487,-1479.17,0.00059726,120]
[340860119,1729953043496,-500.0,0.00059726,3]
[340860120,1729953043505,-500.0,0.00059726,120]
[340860121,1729953043514,-200.0,0.00059726,30]
[340860122,1729953043523,-500.0,0.00059726,120]
[340860123,1729953043533,-500.0,0.00059726,120]
[340860124,1729953043542,-500.0,0.00059726,120]
[340860125,1729953043551,-500.0,0.00059726,120]
[340860126,1729953043560,-798.12,0.00059726,120]
[340860127,1729953043569,-2000.0,0.0005977,15]
[340860128,1729953043578,-200.0,0.0005977,15]
[340860129,1729953043587,-500.0,0.00059773,5]
[340860130,1729953043597,-3608.68555765,0.00059785,120]
[340860131,1729953043606,-241.69177691,0.0005979,7]
[340860132,1729953043615,-188.8180738,0.00059797,2]
[340860133,1729953043625,-1938.4221419,0.00059797,2]
[340860134,1729953043634,-154.0,0.00059799,25]
[340860135,1729953043644,-193071.83279639,0.000598,120]
[340860136,1729953043659,-10755.88615159,0.000598,120]
[340860137,1729953043671,-20685.37614258,0.000598,120]
[340860138,1729953043683,-371.065,0.000598,120]
[340860139,1729953043694,-916.09711204,0.000598,120]
[340860142,1729953045559,-500.0,0.00041943,2]
[340860143,1729953045570,-500.0,0.00043313,2]
[340860144,1729953045580,-135.33693851,0.000598,120]
[340860145,1729953045727,-19195.130498,0.000598,120]
[340860146,1729953045810,-545.54999952,0.000598,120]
[340860153,1729953046578,-468.06,0.000598,120]
[340860154,1729953046665,-1669.75,0.000598,120]
[340860155,1729953064921,251.89217282,0.00017433,2]
[340860157,1729953182085,275.0,0.00019725,2]
[340860158,1729953196213,163.45,0.00015342,2]
[340860159,1729953846790,158.97,0.00015342,2]
[340860161,1729953871344,423.95,0.0001726,2]
[340860162,1729953955415,400.0,0.0002,2]
[340860163,1729954109073,155.0,0.00043342,120]
[340860164,1729954119969,487.16800262,0.00043342,30]
[340860165,1729954123886,1147.3137,0.00043342,30]
[340860166,1729954134574,197.15419056,0.00043342,30]
[340860167,1729954156586,175.0,0.00043342,120]
[340860168,1729954168931,324.43783691,0.00043342,60]
[340860169,1729954169932,1206.00938112,0.00043342,120]
[340860170,1729954203167,1000.0,0.00043346,120]
[340860172,1729954231491,-276.28346902,0.000369,2]
[340860173,1729954231634,-22.71653098,0.000369,2]
[340860174,1729954231643,-2682.23250323,0.000369,2]
[340860175,1729954231653,-329.0,0.00037,2]
[340860176,1729954231662,-150.0,0.00039107,7]
[340860177,1729954231672,-250.0,0.00039107,120]
[340860178,1729954231681,-1729.07,0.00039148,2]
[340860179,1729954231690,-150.0,0.00039539,2]
[340860180,1729954231700,-158.97,0.00039671,2]
[340860181,1729954231709,-205.64,0.00039773,2]
[340860182,1729954231719,-221.079,0.0003988,56]
[340860183,1729954231728,-1162.7,0.00039907,2]
[340860184,1729954231737,-2500.0,0.0003996,2]
[340860185,1729954231746,-1318.0814,0.0003997,2]
[340860186,1729954231756,-92451.8785,0.0003997,2]
[340860187,1729954231765,-168.69631345,0.00039973,2]
[340860188,1729954231775,-21302.7284,0.0003998,2]
[340860189,1729954231785,-5711.0599,0.0003998,2]
[340860190,1729954231795,-132873.58897817,0.0004006,2]
[340860191,1729954231806,-34570.9066204,0.0004007,8]
[340860192,1729954231816,-159.711936,0.00040073,5]
[340860193,1729954231827,-159.711936,0.00040073,5]
[340860194,1729954231838,-601.18106207,0.00040079,31]
[340860195,1729954231848,-500.0,0.00040079,31]
[340860196,1729954231859,-500.0,0.00040079,31]
[340860197,1729954231870,-500.0,0.00040079,31]
[340860198,1729954231881,-500.0,0.00040079,31]
[340860199,1729954231890,-500.0,0.00040079,31]
[340860200,1729954231899,-500.0,0.00040079,31]
[340860201,1729954231908,-600.0,0.00040079,31]
[340860202,1729954231918,-290.06480551,0.00040079,31]
[340860203,1729954231926,-336.915,0.00040079,31]
[340860204,1729954231935,-100000.0,0.0004008,2]
[340860205,1729954231944,-16512.732,0.0004008,2]
[340860206,1729954231953,-921.62,0.00040096,2]
[340860207,1729954231962,-27656.7252964,0.0004016,8]
[340860208,1729954231972,-161.12785127,0.0004016,2]
[340860209,1729954231981,-138283.626482,0.0004017,8]
[340860210,1729954231990,-131952.174697,0.0004017,8]
[340860211,1729954231999,-159.711936,0.00040173,5]
[340860212,1729954232008,-159.711936,0.00040173,5]
[340860213,1729954232017,-159.711936,0.00040173,5]
[340860214,1729954232026,-500.0,0.00040173,2]
[340860215,1729954232035,-376.95229711,0.00040179,31]
[340860216,1729954232044,-300.0,0.00040179,31]
[340860217,1729954232053,-215.49553004,0.00040179,31]
[340860218,1729954232062,-26179.2742,0.0004018,2]
[340860219,1729954232071,-59236.94821256,0.0004018,2]
[340860220,1729954232095,-185763.05178744,0.0004018,2]
[340860221,1729954232104,-596.672,0.0004018,2]
[340860222,1729954232113,-500.0,0.0004018,2]
[340860223,1729954232123,-200.0,0.00040273,2]
[340860224,1729954232132,-181.27,0.00040291,2]
[340860225,1729954232141,-163.07,0.00040449,2]
[340860226,1729954232151,-163.07,0.00040517,2]
[340860227,1729954232160,-163.07,0.00040584,2]
[340860228,1729954232173,-163.07,0.00040652,2]
[340860229,1729954232182,-150.62,0.00041096,2]
[340860230,1729954232192,-352.99437297,0.00041542,2]
[340860231,1729954232203,-186.29375797,0.00041683,60]
[340860232,1729954232214,-205.64,0.00041762,2]
[340860233,1729954232223,-566.42,0.00042084,7]
[340860234,1729954232232,-175.2,0.00042253,2]
[340860235,1729954232242,-7761.89262926,0.00042286,8]
[340860236,1729954232251,-214.53702839,0.00042346,14]
[340860237,1729954232261,-921.62,0.0004236,2]
[340860238,1729954232270,-298.75546892,0.00043281,30]
[340860239,1729954232279,-150.0,0.000433,2]
[340860240,1729954232288,-150.0,0.000433,120]
[340860241,1729954232297,-600.0,0.000433,120]
[340860242,1729954232307,-6914.18132409,0.00043722,9]
[340860243,1729954232316,-7761.89262926,0.00043731,9]
[340860244,1729954232325,-6914.18132409,0.00043742,9]
[340860245,1729954232334,-7761.89262926,0.00043742,9]
[340860246,1729954232344,-205.64,0.00043751,2]
[340860247,1729954232353,-23900.0,0.00043751,2]
[340860248,1729954232366,-180.41,0.00043869,2]
[340860249,1729954232377,-921.62,0.00044624,2]
[340860250,1729954232386,-180.0,0.00044934,120]
[340860251,1729954232396,-7761.89262926,0.00045729,9]
[340860252,1729954232405,-205.64,0.00045739,2]
[340860253,1729954232415,-1265.938,0.00046118,2]
[340860254,1729954232425,-921.62,0.00046888,2]
[340860255,1729954232435,-4384.0,0.000471,3]
[340860256,1729954232446,-179.88,0.00047422,120]
[340860257,1729954232456,-6223.0,0.00047505,3]
[340860258,1729954232467,-205.64,0.00047728,2]
[340860259,1729954232476,-1000.0,0.00048451,2]
[340860260,1729954232486,-7761.89262926,0.0004849,10]
[340860261,1729954232495,-11528.0,0.000487,5]
[340860262,1729954232505,-174.2125,0.00048888,30]
[340860263,1729954232515,-1252.0,0.00049118,2]
[340860264,1729954232525,-921.62,0.00049152,2]
[340860265,1729954232534,-500.0,0.00049315,120]
[340860266,1729954232544,-1000.0,0.000498,120]
[340860267,1729954232554,-234.0,0.00049888,10]
[340860268,1729954232563,-150.0,0.00049987,30]
[340860269,1729954232573,-15523.7852585,0.0004999,10]
[340860270,1729954232582,-1645.0,0.0005,11]
[340860271,1729954232592,-7499.98,0.0005,120]
[340860272,1729954232724,-7500.0,0.0005,120]
[340860273,1729954232734,-3139.48,0.0005,120]
[340860274,1729954232743,-4019.09,0.0005,120]
[340860275,1729954232754,-3973.09,0.0005,120]
[340860276,1729954232764,-315.59,0.0005,120]
[340860277,1729954232774,-150.62,0.0005137,2]
[340860278,1729954232784,-921.62,0.00051416,2]
[340860279,1729954232793,-7761.89262926,0.00051588,10]
[340860280,1729954232803,-369.46,0.00052,7]
[340860281,1729954232812,-1252.0,0.00052118,120]
[340860282,1729954232823,-188.0,0.00053292,2]
[340860283,1729954232832,-921.62,0.0005368,2]
[340860284,1729954232843,-4736.48005373,0.00053923,15]
[340860285,1729954232854,-1000.0,0.000542,30]
[340860286,1729954232865,-1000.0,0.00054508,120]
[340860287,1729954232876,-500.0,0.00054693,2]
[340860288,1729954232885,-401.56972,0.000547,99]
[340860289,1729954232895,-1000.0,0.00054728,4]
[340860290,1729954232904,-23285.6778878,0.00054784,11]
[340860291,1729954232913,-500.0,0.00054794,120]
[340860292,1729954232922,-500.0,0.00054794,120]
[340860293,1729954232932,-555.06275037,0.00054794,60]
[340860294,1729954232942,-500.0,0.00054794,120]
[340860295,1729954232951,-220.08556738,0.00054794,120]
[340860296,1729954232961,-500.0,0.00054794,120]
[340860297,1729954232970,-500.0,0.00054794,120]
[340860298,1729954232980,-567.27661011,0.00054794,120]
[340860299,1729954232989,-500.0,0.00054794,120]
[340860300,1729954232998,-500.0,0.00054794,120]
[340860301,1729954233007,-500.0,0.00054794,120]
[340860302,1729954233017,-500.0,0.00054794,120]
[340860303,1729954233027,-500.0,0.00054794,120]
[340860304,1729954233037,-500.0,0.00054794,7]
[340860305,1729954233046,-500.0,0.00054794,120]
[340860306,1729954233056,-500.0,0.00054794,120]
[340860307,1729954233065,-500.0,0.00054794,120]
[340860308,1729954233074,-500.0,0.00054794,120]
[340860309,1729954233084,-500.0,0.00054794,120]
[340860310,1729954233093,-500.0,0.00054794,120]
[340860311,1729954233103,-500.0,0.00054794,120]
[340860312,1729954233112,-500.0,0.00054794,120]
[340860313,1729954233122,-500.0,0.00054794,120]
[340860314,1729954233132,-500.0,0.00054794,120]
[340860315,1729954233142,-500.0,0.00054794,120]
[340860316,1729954233151,-500.0,0.00054794,120]
[340860317,1729954233161,-500.0,0.00054794,120]
[340860318,1729954233171,-516.96,0.00054794,120]
[340860319,1729954233184,-500.0,0.00054794,120]
[340860320,1729954233193,-189.77396383,0.00054794,120]
[340860321,1729954233203,-500.0,0.00054794,120]
[340860322,1729954233213,-713.46,0.00054794,120]
[340860323,1729954233223,-500.0,0.00054794,120]
[340860324,1729954233232,-794.58,0.00054794,120]
[340860325,1729954233242,-2426.54,0.00054794,120]
[340860326,1729954233252,-1382.79,0.00054794,120]
[340860327,1729954233261,-500.0,0.00054794,120]
[340860328,1729954233271,-500.0,0.00054794,120]
[340860329,1729954233280,-165.60871502,0.00054794,120]
[340860330,1729954233289,-500.0,0.00054794,120]
[340860331,1729954233299,-500.0,0.00054794,120]
[340860332,1729954233308,-500.0,0.00054794,120]
[340860333,1729954233318,-500.0,0.00054794,120]
[340860334,1729954233327,-2462.02,0.00054794,120]
[340860335,1729954233336,-500.0,0.00054794,120]
[340860336,1729954233346,-500.0,0.00054794,21]
[340860337,1729954233356,-500.0,0.00054794,120]
[340860338,1729954233366,-799.22,0.00054794,120]
[340860339,1729954233376,-500.0,0.00054794,120]
[340860340,1729954233385,-500.0,0.00054794,3]
[340860341,1729954233395,-543.0,0.00054794,120]
[340860342,1729954233408,-1000.0,0.00054794,120]
[340860343,1729954233417,-500.0,0.00054794,120]
[340860344,1729954233427,-500.0,0.00054794,120]
[340860345,1729954233436,-1479.17,0.00054794,120]
[340860346,1729954233445,-500.0,0.00054794,120]
[340860347,1729954233455,-500.0,0.00054794,120]
[340860348,1729954233465,-500.0,0.00054794,120]
[340860349,1729954233474,-500.0,0.00054794,120]
[340860350,1729954233483,-500.0,0.00054794,120]
[340860351,1729954233492,-1101.66,0.00054794,120]
[340860352,1729954233502,-1000.0,0.00054794,120]
[340860353,1729954233511,-500.0,0.00054794,120]
[340860354,1729954233520,-500.0,0.00054794,120]
[340860355,1729954233529,-500.0,0.00054794,120]
[340860356,1729954233538,-500.0,0.00054794,120]
[340860357,1729954233548,-500.0,0.00054794,120]
[340860358,1729954233557,-500.0,0.00054794,120]
[340860359,1729954233566,-500.0,0.00054794,120]
[340860360,1729954233576,-500.0,0.00054794,120]
[340860361,1729954233585,-514.55259358,0.00054794,120]
[340860362,1729954233594,-500.0,0.00054794,120]
[340860363,1729954233604,-594.74146027,0.00054794,120]
[340860364,1729954233613,-834.96,0.00054794,120]
[340860365,1729954233623,-500.0,0.00054794,120]
[340860366,1729954233633,-500.0,0.00054794,120]
[340860367,1729954233643,-500.0,0.00054794,120]
[340860368,1729954233652,-498.98503,0.00054794,120]
[340860369,1729954233662,-500.0,0.00054794,120]
[340860370,1729954233671,-500.0,0.00054794,120]
[340860371,1729954233680,-500.0,0.00054794,120]
[340860372,1729954233689,-500.0,0.00054794,120]
[340860373,1729954233698,-500.0,0.00054794,120]
[340860374,1729954233708,-500.0,0.00054794,120]
[340860375,1729954233717,-500.0,0.00054794,120]
[340860376,1729954233727,-500.0,0.00054794,120]
[340860377,1729954233736,-500.0,0.00054794,120]
[340860378,1729954233746,-923.12,0.00054794,120]
[340860379,1729954233755,-500.0,0.00054794,120]
[340860380,1729954233765,-581.0,0.00054795,120]
[340860381,1729954233775,-15523.7852585,0.00055332,11]
[340860382,1729954233784,-500.0,0.00055341,120]
[340860383,1729954233793,-500.0,0.00055342,120]
[340860384,1729954233802,-500.0,0.00055342,120]
[340860385,1729954233812,-500.0,0.00055342,120]
[340860386,1729954233821,-500.0,0.00055342,120]
[340860387,1729954233830,-500.0,0.00055342,120]
[340860388,1729954233840,-157.01270969,0.00055342,120]
[340860389,1729954233849,-360.82764638,0.00055342,120]
[340860390,1729954233859,-500.0,0.00055342,120]
[340860391,1729954233868,-500.0,0.00055342,120]
[340860392,1729954233878,-500.0,0.00055342,7]
[340860393,1729954233888,-500.0,0.00055342,120]
[340860394,1729954233897,-500.0,0.00055342,120]
[340860395,1729954233906,-500.0,0.00055342,120]
[340860396,1729954233917,-500.0,0.00055342,120]
[340860397,1729954233927,-500.0,0.00055342,120]
[340860398,1729954233936,-500.0,0.00055342,120]
[340860399,1729954233946,-500.0,0.00055342,120]
[340860400,1729954233955,-500.0,0.00055342,120]
[340860401,1729954233965,-500.0,0.00055342,120]
[340860402,1729954233974,-500.0,0.00055342,120]
[340860403,1729954233983,-500.0,0.00055342,120]
[340860404,1729954233993,-500.0,0.00055342,120]
[340860405,1729954234002,-500.0,0.00055342,120]
[340860406,1729954234012,-516.96,0.00055342,120]
[340860407,1729954234022,-525.73217612,0.00055342,120]
[340860408,1729954234031,-500.0,0.00055342,120]
[340860409,1729954234040,-713.46,0.00055342,120]
[340860410,1729954234050,-310.33952725,0.00055342,120]
[340860411,1729954234059,-794.58,0.00055342,120]
[340860412,1729954234068,-2426.54,0.00055342,120]
[340860413,1729954234078,-1382.79,0.00055342,120]
[340860414,1729954234088,-500.0,0.00055342,120]
[340860415,1729954234097,-389.63469709,0.00055342,120]
[340860416,1729954234106,-270.59400351,0.00055342,120]
[340860417,1729954234116,-544.82333326,0.00055342,120]
[340860418,1729954234128,-500.0,0.00055342,120]
[340860419,1729954234138,-500.0,0.00055342,120]
[340860420,1729954234147,-2462.02,0.00055342,120]
[340860421,1729954234157,-500.0,0.00055342,120]
[340860422,1729954234167,-500.0,0.00055342,21]
[340860423,1729954234177,-500.0,0.00055342,120]
[340860424,1729954234187,-799.22,0.00055342,120]
[340860425,1729954234197,-500.0,0.00055342,120]
[340860426,1729954234206,-500.0,0.00055342,3]
[340860427,1729954234216,-543.0,0.00055342,120]
[340860428,1729954234225,-1000.0,0.00055342,120]
[340860429,1729954234234,-500.0,0.00055342,120]
[340860430,1729954234244,-1479.17,0.00055342,120]
[340860431,1729954234254,-1101.66,0.00055342,120]
[340860432,1729954234264,-1000.0,0.00055342,120]
[340860433,1729954234273,-500.0,0.00055342,120]
[340860434,1729954234282,-500.0,0.00055342,120]
[340860435,1729954234292,-500.0,0.00055342,120]
[340860436,1729954234301,-500.0,0.00055342,120]
[340860437,1729954234310,-500.0,0.00055342,120]
[340860438,1729954234319,-500.0,0.00055342,120]
[340860439,1729954234328,-500.0,0.00055342,120]
[340860440,1729954234338,-500.0,0.00055342,120]
[340860441,1729954234347,-500.0,0.00055342,120]
[340860442,1729954234356,-834.96,0.00055342,120]
[340860443,1729954234365,-128.32580653,0.00055342,120]
[340860445,1729954237623,-500.0,0.00054794,120]
[340860446,1729954237635,-371.67419347,0.00055342,120]
[340860447,1729954237645,-500.0,0.00055342,120]
[340860448,1729954237655,-500.0,0.00055342,120]
[340860449,1729954237664,-511.4726453,0.00055342,120]
[340860450,1729954237673,-500.0,0.00055342,120]
[340860451,1729954237683,-500.0,0.00055342,120]
[340860452,1729954237692,-500.0,0.00055342,120]
[340860453,1729954237702,-500.0,0.00055342,120]
[340860454,1729954237711,-500.0,0.00055342,120]
[340860455,1729954237720,-38.50843149,0.00055342,120]
[340860456,1729954237760,-461.49156851,0.00055342,120]
[340860457,1729954237770,-500.0,0.00055342,120]
[340860458,1729954237779,-549.72412132,0.00055342,120]
[340860459,1729954237790,-373.39587868,0.00055342,120]
[340860460,1729954237799,-500.0,0.00055342,120]
[340860461,1729954237808,-7761.89262926,0.0005588,11]
[340860462,1729954237817,-500.0,0.0005589,120]
[340860463,1729954237827,-500.0,0.0005589,120]
[340860464,1729954237837,-500.0,0.0005589,120]
[340860465,1729954237847,-185.81961494,0.0005589,120]
[340860466,1729954237856,-449.22678478,0.0005589,120]
[340860467,1729954237867,-500.0,0.0005589,120]
[340860468,1729954237876,-500.0,0.0005589,120]
[340860469,1729954237887,-500.0,0.0005589,7]
[340860470,1729954237896,-500.0,0.0005589,120]
[340860471,1729954237905,-500.0,0.0005589,120]
[340860472,1729954237915,-500.0,0.0005589,120]
[340860473,1729954237924,-500.0,0.0005589,120]
[340860474,1729954237933,-186.88872955,0.0005589,120]
[340860475,1729954237943,-500.0,0.0005589,120]
[340860476,1729954237951,-500.0,0.0005589,120]
[340860477,1729954237961,-500.0,0.0005589,120]
[340860478,1729954237970,-429.18802522,0.0005589,120]
[340860479,1729954237980,-500.0,0.0005589,120]
[340860480,1729954237989,-500.0,0.0005589,120]
[340860481,1729954237998,-500.0,0.0005589,120]
[340860482,1729954238007,-469.19903474,0.0005589,120]
[340860483,1729954238016,-516.96,0.0005589,120]
[340860484,1729954238025,-462.36894689,0.0005589,120]
[340860485,1729954238034,-713.46,0.0005589,120]
[340860486,1729954238044,-794.58,0.0005589,120]
[340860487,1729954238053,-2426.54,0.0005589,120]
[340860488,1729954238062,-1382.79,0.0005589,120]
[340860489,1729954238072,-508.01104229,0.0005589,120]
[340860490,1729954238082,-500.0,0.0005589,120]
[340860491,1729954238091,-500.0,0.0005589,120]
[340860492,1729954238100,-2462.02,0.0005589,120]
[340860493,1729954238211,-500.0,0.0005589,120]
[340860494,1729954238221,-500.0,0.0005589,21]
[340860495,1729954238230,-500.0,0.0005589,120]
[340860496,1729954238240,-799.22,0.0005589,120]
[340860497,1729954238249,-500.0,0.0005589,120]
[340860498,1729954238258,-500.0,0.0005589,3]
[340860499,1729954238267,-543.0,0.0005589,120]
[340860500,1729954238276,-1000.0,0.0005589,120]
[340860501,1729954238285,-500.0,0.0005589,120]
[340860502,1729954238294,-1479.17,0.0005589,120]
[340860503,1729954238303,-1101.66,0.0005589,120]
[340860504,1729954238313,-1000.0,0.0005589,120]
[340860505,1729954238322,-500.0,0.0005589,120]
[340860506,1729954238331,-500.0,0.0005589,120]
[340860507,1729954238340,-500.0,0.0005589,120]
[340860508,1729954238349,-155.38269385,0.0005589,120]
[340860509,1729954238358,-500.0,0.0005589,120]
[340860510,1729954238367,-500.0,0.0005589,120]
[340860511,1729954238376,-500.0,0.0005589,120]
[340860512,1729954238387,-500.0,0.0005589,120]
[340860513,1729954238395,-500.0,0.0005589,120]
[340860514,1729954238404,-834.96,0.0005589,120]
[340860515,1729954238415,-500.0,0.0005589,120]
[340860516,1729954238426,-500.0,0.0005589,120]
[340860517,1729954238436,-500.0,0.0005589,120]
[340860518,1729954238446,-500.0,0.0005589,120]
[340860519,1729954238456,-500.0,0.0005589,120]
[340860520,1729954238465,-347.82049384,0.0005589,120]
[340860521,1729954238475,-294.42986707,0.0005589,120]
[340860522,1729954238484,-500.0,0.0005589,120]
[340860523,1729954238493,-923.12,0.0005589,120]
[340860524,1729954238502,-500.0,0.0005589,120]
[340860525,1729954238511,-921.62,0.00055944,2]
[340860526,1729954238520,-1002.0,0.00056,61]
[340860527,1729954238530,-500.0,0.00056013,7]
[340860528,1729954238539,-500.0,0.00056013,5]
[340860529,1729954238548,-4736.48005373,0.00056249,15]
[340860530,1729954238557,-1500.0,0.000564,90]
[340860531,1729954238566,-3510.7,0.00056406,2]
[340860532,1729954238575,-500.0,0.00056438,120]
[340860533,1729954238584,-500.0,0.00056438,120]
[340860534,1729954238593,-500.0,0.00056438,120]
[340860535,1729954238603,-500.0,0.00056438,120]
[340860536,1729954238612,-500.0,0.00056438,120]
[340860537,1729954238622,-500.0,0.00056438,120]
[340860538,1729954238633,-500.0,0.00056438,120]
[340860539,1729954238642,-500.0,0.00056438,120]
[340860540,1729954238651,-516.96,0.00056438,120]
[340860541,1729954238660,-713.46,0.00056438,120]
[340860542,1729954238670,-794.58,0.00056438,120]
[340860543,1729954238679,-2426.54,0.00056438,120]
[340860544,1729954238688,-1382.79,0.00056438,120]
[340860545,1729954238697,-500.0,0.00056438,120]
[340860546,1729954238706,-2462.02,0.00056438,120]
[340860547,1729954238715,-500.0,0.00056438,120]
[340860548,1729954238725,-500.0,0.00056438,21]
[340860549,1729954238734,-500.0,0.00056438,120]
[340860550,1729954238743,-799.22,0.00056438,120]
[340860551,1729954238752,-500.0,0.00056438,3]
[340860552,1729954238762,-543.0,0.00056438,120]
[340860553,1729954238771,-490.69273814,0.00056438,120]
[340860554,1729954238780,-1479.17,0.00056438,120]
[340860555,1729954238789,-1101.66,0.00056438,120]
[340860556,1729954238799,-1000.0,0.00056438,120]
[340860557,1729954238808,-500.0,0.00056438,120]
[340860558,1729954238817,-500.0,0.00056438,120]
[340860559,1729954238826,-500.0,0.00056438,120]
[340860560,1729954238835,-494.58097773,0.00056438,120]
[340860561,1729954238844,-500.0,0.00056438,120]
[340860562,1729954238853,-500.0,0.00056438,120]
[340860563,1729954238862,-500.0,0.00056438,120]
[340860564,1729954238871,-834.96,0.00056438,120]
[340860565,1729954238880,-577.17737864,0.00056438,120]
[340860566,1729954238890,-500.0,0.00056438,120]
[340860567,1729954238898,-500.0,0.00056438,120]
[340860568,1729954238907,-500.0,0.00056438,120]
[340860569,1729954238917,-500.0,0.00056438,120]
[340860570,1729954238926,-500.0,0.00056438,120]
[340860571,1729954238935,-923.12,0.00056438,120]
[340860572,1729954238945,-500.0,0.00056438,120]